Cogmind - Beta 10.2 @@@ ROGUE MODE // 2021.11.04 @ 09:06:39 Player: ZEROAFFEX Result: Destroyed by S-43 Plague with Heavy Machine Gun Performance ------------- Evolutions (5) 2500 Regions Visited (13) 2600 Robots Destroyed (26) 130 Value Destroyed (1078) 1078 Prototype IDs (19) 380 Alien Tech Used (0) 0 Bonus (1484) 1484 TOTAL SCORE: 8172 Bonus ------- Follower Combat Kills 36 Aligned with FarCom 300 Met Warlord at Base 500 MAIN.C Attacked Warlord 500 Warlord Defense Kill 148 Cogmind --------- Core Integrity 0/1000 Matter 300/300 Energy 100/100 System Corruption 0% Temperature Cool (-100) Movement Core (300) Ox5 Location -5/Warlord Parts ------- > --- POWER (2) -------- (None) > --- PROPULSION (7) --- (None) > --- UTILITY (5) ------ Cryofiber Web Large Storage Unit > --- WEAPON (3) ------- (None) > --- INVENTORY (10) --- Light Fission Core Cryofiber Web Medium Storage Unit Vortex Driver Heavy Machine Gun Heavy Machine Gun Heavy Machine Gun Missile Launcher Hammer Peak State ------------ > --- POWER ------------ Light Angular Momentum Engine Micro Fission Core > --- PROPULSION ------- Cooled Cesium-ion Thruster Flying Fortress v7 > --- UTILITY ---------- Cryofiber Web Large Storage Unit Energy Well Advanced Targeting Computer Improved Maneuvering Thrusters > --- WEAPON ----------- Vortex Rifle Vortex Rifle Vortex Driver > --- INVENTORY -------- Light Fission Core Micro Fission Core Cryofiber Web Medium Storage Unit Vortex Driver Heavy Machine Gun Heavy Machine Gun Heavy Machine Gun Missile Launcher Hammer [Rating: 95] Favorites ----------- Power Light Angular Momentum Engine Engine Light Angular Momentum Engine Power Core Micro Fission Core Propulsion Flying Fortress v7 Treads Light Treads Wheel Compact Wheel Flight Unit Flying Fortress v7 Utility Large Storage Unit Device Cryofiber Web Storage Large Storage Unit Processor Advanced Targeting Computer Protection Light Armor Plating Weapon Vortex Rifle Energy Gun Vortex Rifle Energy Cannon Vortex Driver Ballistic Gun Heavy Machine Gun Ballistic Cannon Advanced Assault Cannon Impact Weapon Hammer Special Melee Weapon Dirty Datajack Build | -11 -10 -10 -10 -9 -8 -7 -7 -7 -6 -5 -5 -5 -5 ------- Run | Scr Mat Min Exi Min Mat Fac Low Low Fac Fac Upp Upp War Slots Evolved 10 | . . . . . 4 2 . . 2 2 . . . Power 1 | . . . . . . . . . 1 . . . . Propulsion 5 | . . . . . 2 1 . . 1 1 . . . Utility 3 | . . . . . 2 . . . . 1 . . . Weapon 1 | . . . . . . 1 . . . . . . . Parts Attached 61 | 6 3 . 1 . 23 2 6 1 10 1 3 . 5 Power 12 | 1 1 . . . 3 . 2 . 3 . 1 . 1 Engine 5 | 1 . . . . 3 . . . 1 . . . . Core 7 | . 1 . . . . . 2 . 2 . 1 . 1 Reactor . | . . . . . . . . . . . . . . Propulsion 7 | 2 . . . . 1 1 . . 2 . . . 1 Treads 1 | 1 . . . . . . . . . . . . . Leg . | . . . . . . . . . . . . . . Wheel 1 | 1 . . . . . . . . . . . . . Hover . | . . . . . . . . . . . . . . Flight 5 | . . . . . 1 1 . . 2 . . . 1 Utility 18 | 1 1 . 1 . 11 . . 1 2 1 . . . Device 7 | . 1 . . . 4 . . . 1 1 . . . Storage 6 | 1 . . 1 . 3 . . . 1 . . . . Processor 3 | . . . . . 2 . . 1 . . . . . Hackware . | . . . . . . . . . . . . . . Protection 2 | . . . . . 2 . . . . . . . . Artifact . | . . . . . . . . . . . . . . Weapon 24 | 2 1 . . . 8 1 4 . 3 . 2 . 3 Energy Gun 6 | 2 1 . . . 1 . . . . . . . 2 Energy Cannon 2 | . . . . . 1 . . . . . . . 1 Ballistic Gun 10 | . . . . . 5 1 1 . 3 . . . . Ballistic Cannon 2 | . . . . . . . 1 . . . 1 . . Launcher . | . . . . . . . . . . . . . . Special Weapon . | . . . . . . . . . . . . . . Impact Weapon 3 | . . . . . 1 . 1 . . . 1 . . Slashing Weapon . | . . . . . . . . . . . . . . Piercing Weapon . | . . . . . . . . . . . . . . Special Melee Weapon 1 | . . . . . . . 1 . . . . . . Unidentified Prototypes 5 | . . . . . 2 . . . 1 . . . 2 Parts Lost 17 | . . . . . 7 . 1 . 1 . . 1 7 Power 4 | . . . . . 2 . 1 . . . . . 1 Propulsion 4 | . . . . . . . . . 1 . . 1 2 Utility 5 | . . . . . 3 . . . . . . . 2 Weapon 4 | . . . . . 2 . . . . . . . 2 Highest Loss Streak 7 | . . . . . 4 . 1 . 1 . . 1 7 Average Slot Usage (%) 75 | . 98 100 100 100 65 74 76 76 75 76 76 73 69 Engine 4 | . 11 . . . 4 7 3 . 5 5 5 5 4 Core 5 | . 3 14 14 14 3 . 3 7 6 5 5 5 5 Treads 2 | . 14 14 14 14 . . . . . . . . . Wheel 2 | . 14 14 14 14 . . . . . . . . . Flight 10 | . . . . . 9 15 15 15 15 17 17 14 11 Device 10 | . 13 14 14 14 6 7 7 7 6 11 11 11 10 Storage 12 | . 14 14 14 14 14 15 15 15 13 11 11 11 10 Processor 4 | . . . . . 7 7 7 7 6 5 5 5 4 Energy Gun 9 | . 28 28 28 28 6 . . . . . . . 10 Energy Cannon 2 | . . . . . 1 . . . . . . . 4 Ballistic Gun 6 | . . . . . 10 21 21 15 13 11 11 11 . Ballistic Cannon 1 | . . . . . . . 1 7 6 5 4 5 . Naked Turns . | . . . . . . . . . . . . . . Heaviest Build 70 | 10 14 14 26 26 33 35 36 36 55 57 57 55 70 Greatest Support 88 | 16 16 16 16 16 72 77 77 77 88 88 88 88 85 Greatest Overweight (x) 1 | . . . 1 1 . . . . . . . . . Average Overweight (x) . | . . . . 1 . . . . . . . . . Largest Inventory Capacity 12 | 6 6 6 10 10 12 10 10 10 10 10 10 10 10 Average Capacity 9 | 5 6 6 7 10 9 10 10 10 10 10 10 10 10 Most Carried 10 | 4 6 6 9 9 10 10 10 9 10 10 10 10 10 Average Carried 8 | 1 4 6 6 9 6 9 9 9 9 9 10 10 9 Final Capacity 10 | 6 6 6 10 10 10 10 10 10 10 10 10 10 10 Final Carried 10 | 4 6 6 9 9 10 10 9 9 10 10 10 10 9 Class Distribution -------------------- 54% | Gunner 21% | Mutant 12% | Skirmisher 5% | Scavenger-Gunner 4% | Scavenger-Mutant Dominant Class ---------------- Mutant | -10/Materials Mutant | -10/Mines Mutant | -10/Exiles Skirmisher | -9/Mines Mutant | -8/Materials Scavenger-Skirmisher | -7/Factory Scavenger-Gunner | -7/Lower Caves Gunner | -7/Lower Caves Skirmisher | -6/Factory Skirmisher | -5/Factory Gunner | -5/Upper Caves Gunner | -5/Upper Caves Gunner | -5/Warlord Resources | -11 -10 -10 -10 -9 -8 -7 -7 -7 -6 -5 -5 -5 -5 ----------- Run | Scr Mat Min Exi Min Mat Fac Low Low Fac Fac Upp Upp War Matter Collected 1231 | 195 85 . . 20 435 . 116 . 117 . 51 15 197 Remotely . | . . . . . . . . . . . . . . Salvage Created 1281 | . . 77 . . 811 . 187 . 117 . 51 . 38 Parts 66 | . . 6 . . 44 . 6 . 8 . 2 . . Haulers Intercepted 1 | . . . . . 1 . . . . . . . . Recyclers Shooed 1 | . . . . . 1 . . . . . . . . Parts Field Recycled . | . . . . . . . . . . . . . . Retrieved Matter . | . . . . . . . . . . . . . . Parts Self-Destructed 146 | . . . . . . . 5 . . . 1 . 140 Prevented 22 | . . . . . . . . . . . . . 22 Kills | -11 -10 -10 -10 -9 -8 -7 -7 -7 -6 -5 -5 -5 -5 ------- Run | Scr Mat Min Exi Min Mat Fac Low Low Fac Fac Upp Upp War Combat Hostiles Destroyed 22 | . . 2 . . 12 . 4 . 2 . 1 . 1 Guns 21 | . . 2 . . 11 . 4 . 2 . 1 . 1 AOE 1 | . . . . . 1 . . . . . . . . Classes Destroyed 10 | . . 2 . . 6 . 1 . . . . . 1 Worker 1 | . . . . . 1 . . . . . . . . Builder 1 | . . . . . 1 . . . . . . . . Hauler 1 | . . . . . 1 . . . . . . . . Recycler 1 | . . . . . 1 . . . . . . . . Swarmer 1 | . . 1 . . . . . . . . . . . Grunt 9 | . . 1 . . 5 . 3 . . . . . . Brawler 1 | . . . . . . . . . . . . . 1 Sentry 8 | . . . . . 5 . . . 2 . 1 . . Hunter 2 | . . . . . 2 . . . . . . . . Mutant 1 | . . . . . . . 1 . . . . . . Best Kill Streak 4 | . . 1 . . 4 . 3 . 1 . 1 . 1 Combat Bots Only 4 | . . 1 . . 4 . 3 . 1 . 1 . 1 Max Kills in Single Turn 2 | . . 1 . . 1 . 2 . 1 . 1 . 1 Gunslinging 1 | . . . . . . . 1 . . . . . . Exploded 1 | . . . . . 1 . . . . . . . . Melee . | . . . . . . . . . . . . . . Uniques/NPCs Destroyed . | . . . . . . . . . . . . . . Combat | -11 -10 -10 -10 -9 -8 -7 -7 -7 -6 -5 -5 -5 -5 -------- Run | Scr Mat Min Exi Min Mat Fac Low Low Fac Fac Upp Upp War Damage Taken 3801 | . . 19 . . 1076 34 125 . 346 . 218 222 1761 Core 1224 | . . . . . 161 . . . 51 . 47 74 891 Absorbed by Shields . | . . . . . . . . . . . . . . Core Remaining (%) 92 | 100 . . . 100 70 . . 100 94 . . . . Volleys Fired 89 | . 1 5 . . 60 . 8 . 6 . 5 1 3 Largest 3 | . 2 2 . . 2 . 3 . 3 . 3 3 3 Hottest 180 | . 90 100 . . 110 . 98 . 108 . 108 108 180 Shots Fired 188 | . 2 10 . . 111 . 21 . 18 . 15 3 8 Gun 168 | . 2 10 . . 109 . 18 . 12 . 10 2 5 Cannon 20 | . . . . . 2 . 3 . 6 . 5 1 3 Launcher . | . . . . . . . . . . . . . . Special . | . . . . . . . . . . . . . . Kinetic 134 | . . . . . 77 . 21 . 18 . 15 3 . Thermal 23 | . 2 10 . . 11 . . . . . . . . Explosive . | . . . . . . . . . . . . . . Electromagnetic 23 | . . . . . 23 . . . . . . . . Entropic 8 | . . . . . . . . . . . . . 8 Robot Hit Streak 13 | . 1 5 . . 13 . 9 . 7 . 5 . 10 Robot Miss Streak 2 | . 1 1 . . 2 . 1 . 1 . 1 . . Penetration Max 1 | . . . . . 1 . . . . . . . 1 Secondary Targets 3 | . . 1 . . 1 . 1 . . . . . . Max Gunslinging Chain 1 | . . 1 . . 1 . 1 . . . . . . Shots Hit Robots 134 | . 1 6 . . 85 . 14 . 13 . 10 . 5 Core Hits 50 | . . 3 . . 30 . 7 . 5 . 3 . 2 Critical Hits 3 | . . . . . 2 . 1 . . . . . . Critical Kills 3 | . . . . . 2 . 1 . . . . . . Critical Parts Destroyed . | . . . . . . . . . . . . . . Melee Attacks 13 | . . . . . 2 . 2 . . . 9 . . Impact 13 | . . . . . 2 . 2 . . . 9 . . Slashing . | . . . . . . . . . . . . . . Piercing . | . . . . . . . . . . . . . . Sneak Attacks . | . . . . . . . . . . . . . . Combat Hostiles . | . . . . . . . . . . . . . . Follow-up Attacks . | . . . . . . . . . . . . . . Damage Inflicted 2615 | . . 62 . . 1371 . 277 . 269 . 209 . 427 Guns 1999 | . . 62 . . 1265 . 221 . 185 . 112 . 154 Cannons 507 | . . . . . 23 . 56 . 84 . 71 . 273 Explosions 83 | . . . . . 83 . . . . . . . . Melee 26 | . . . . . . . . . . . 26 . . Ramming . | . . . . . . . . . . . . . . Kinetic 1631 | . . . . . 902 . 277 . 269 . 183 . . Thermal 279 | . . 62 . . 217 . . . . . . . . Explosive . | . . . . . . . . . . . . . . Electromagnetic 252 | . . . . . 252 . . . . . . . . Impact 26 | . . . . . . . . . . . 26 . . Slashing . | . . . . . . . . . . . . . . Piercing . | . . . . . . . . . . . . . . Entropic 427 | . . . . . . . . . . . . . 427 Highest Corruption 4 | . . . . . 4 . . . . . . . . Average Corruption 4 | . . . . . 4 . . . . . . . . Corruption Purged . | . . . . . . . . . . . . . . Effects 11 | . . . . . 11 . . . . . . . . Message Errors 2 | . . . . . 2 . . . . . . . . Matter Fused 1 | . . . . . 1 . . . . . . . . Heat Flow Errors 1 | . . . . . 1 . . . . . . . . Targeting Errors 6 | . . . . . 6 . . . . . . . . Weapon Failures 1 | . . . . . 1 . . . . . . . . Overload Shots . | . . . . . . . . . . . . . . Overflow Damage . | . . . . . . . . . . . . . . Projectiles . | . . . . . . . . . . . . . . Explosions . | . . . . . . . . . . . . . . Melee . | . . . . . . . . . . . . . . Knockbacks . | . . . . . . . . . . . . . . Impact . | . . . . . . . . . . . . . . Kinetic . | . . . . . . . . . . . . . . Secondary . | . . . . . . . . . . . . . . Self-Inflicted Damage 27 | . . . . . 27 . . . . . . . . Shots 1 | . . . . . 1 . . . . . . . . Rammed . | . . . . . . . . . . . . . . Targets Rammed . | . . . . . . . . . . . . . . Kicked . | . . . . . . . . . . . . . . Crushed . | . . . . . . . . . . . . . . Highest Temperature 211 | . 30 135 . . 211 . 64 . 134 . 167 . 177 Average Temperature 69 | . 17 61 . . 64 . 22 . 62 . 85 . 112 Received Heat Transfer 495 | . . . . . 243 . . . 102 . 45 18 87 Siege Activations . | . . . . . . . . . . . . . . Robots Corrupted . | . . . . . . . . . . . . . . Combat Hostiles . | . . . . . . . . . . . . . . Parts Fried . | . . . . . . . . . . . . . . Impact Corruptions . | . . . . . . . . . . . . . . Robots Melted . | . . . . . . . . . . . . . . Combat Hostiles . | . . . . . . . . . . . . . . Parts Melted 2 | . . . . . 2 . . . . . . . . Heat Transferred 655 | . . 185 . . 470 . . . . . . . . Parts Sabotaged 5 | . . . . . . . . . . . . . 5 Parts Stolen . | . . . . . . . . . . . . . . Parts Stripped . | . . . . . . . . . . . . . . Power Chain Reactions 2 | . . . . . 2 . . . . . . . . Missiles Intercepted . | . . . . . . . . . . . . . . Alert | -11 -10 -10 -10 -9 -8 -7 -7 -7 -6 -5 -5 -5 -5 ------- Run | Scr Mat Min Exi Min Mat Fac Low Low Fac Fac Upp Upp War Peak Influence 242 | . 15 55 . . 242 15 . . 240 132 . . . Initial 117 | . . 5 . . . . . . 69 117 . . . Average 69 | . 9 29 . . 64 3 . . 139 123 . . . Maximum Alert Level 1 | . . . . . 1 . . . 1 . . . . Low Security (%) 92 | 100 100 100 . 100 87 100 . . 90 100 . . . Level 1 7 | . . . . . 12 . . . 9 . . . . Level 2 . | . . . . . . . . . . . . . . Level 3 . | . . . . . . . . . . . . . . Level 4 . | . . . . . . . . . . . . . . Level 5 . | . . . . . . . . . . . . . . High Security . | . . . . . . . . . . . . . . Max Security . | . . . . . . . . . . . . . . Squads Dispatched 4 | . 3 . . . 1 . . . . . . . . Investigation 1 | . 1 . . . . . . . . . . . . Extermination . | . . . . . . . . . . . . . . Reinforcement 3 | . 2 . . . 1 . . . . . . . . Assault . | . . . . . . . . . . . . . . Garrison . | . . . . . . . . . . . . . . Intercept . | . . . . . . . . . . . . . . Construction Impeded 1 | . . . . . 1 . . . . . . . . Haulers Reinforced . | . . . . . . . . . . . . . . Stealth | -11 -10 -10 -10 -9 -8 -7 -7 -7 -6 -5 -5 -5 -5 --------- Run | Scr Mat Min Exi Min Mat Fac Low Low Fac Fac Upp Upp War Distress Signals 6 | . 1 . . . 4 1 . . . . . . . Communications Jammed . | . . . . . . . . . . . . . . Distress Signals . | . . . . . . . . . . . . . . Times Spotted 103 | . 1 4 . . 20 2 9 1 4 2 1 10 49 Peak Tracking Total 30 | . 1 2 . . 5 4 4 4 2 4 1 6 30 Tactical Retreats 10 | . . . . . 2 . 2 . 2 . . 1 3 Traps | -11 -10 -10 -10 -9 -8 -7 -7 -7 -6 -5 -5 -5 -5 ------- Run | Scr Mat Min Exi Min Mat Fac Low Low Fac Fac Upp Upp War Traps Triggered 1 | . . . . . . . . . 1 . . . . Indirectly . | . . . . . . . . . . . . . . Trap Hack Attempts . | . . . . . . . . . . . . . . Triggered . | . . . . . . . . . . . . . . Disarmed . | . . . . . . . . . . . . . . Reprogrammed . | . . . . . . . . . . . . . . Reused . | . . . . . . . . . . . . . . Traps Extracted . | . . . . . . . . . . . . . . Installed . | . . . . . . . . . . . . . . Triggered 43 | . . . . . . . . 2 . . . . 41 Machines | -11 -10 -10 -10 -9 -8 -7 -7 -7 -6 -5 -5 -5 -5 ---------- Run | Scr Mat Min Exi Min Mat Fac Low Low Fac Fac Upp Upp War Machines Disabled 2 | . . . . . . . 2 . . . . . . Max in Single Turn 1 | . . . . . . . 1 . . . . . . Machines Sabotaged . | . . . . . . . . . . . . . . Garrisons Compromised . | . . . . . . . . . . . . . . Overloaded Fab Kills . | . . . . . . . . . . . . . . Fab Network Shutdowns . | . . . . . . . . . . . . . . Hacking | -11 -10 -10 -10 -9 -8 -7 -7 -7 -6 -5 -5 -5 -5 --------- Run | Scr Mat Min Exi Min Mat Fac Low Low Fac Fac Upp Upp War Machines Accessed 17 | . 1 . . . 3 . 3 1 . . . . 9 Terminals 4 | . 1 . . . 3 . . . . . . . . Fabricators . | . . . . . . . . . . . . . . Repair Stations . | . . . . . . . . . . . . . . Recycling Units . | . . . . . . . . . . . . . . Scanalyzers . | . . . . . . . . . . . . . . Garrison Access . | . . . . . . . . . . . . . . Total Hacks 43 | . 4 . . . 8 . 7 6 . . . . 18 Successful 36 | . 3 . . . 2 . 7 6 . . . . 18 Failed 7 | . 1 . . . 6 . . . . . . . . Catastrophic 1 | . . . . . 1 . . . . . . . . Database Lockouts . | . . . . . . . . . . . . . . Manual 13 | . 4 . 1 . 8 . . . . . . . . Terminals 12 | . 4 . . . 8 . . . . . . . . Fabricators . | . . . . . . . . . . . . . . Repair Stations . | . . . . . . . . . . . . . . Recycling Units . | . . . . . . . . . . . . . . Scanalyzers . | . . . . . . . . . . . . . . Garrison Access . | . . . . . . . . . . . . . . Terminal Hacks 35 | . 2 . . . 2 . 7 6 . . . . 18 Record 21 | . . . . . . . 5 6 . . . . 10 Prototype ID Bank 7 | . . . . . . . . . . . . . 7 Open Door 3 | . . . . . . . 2 . . . . . 1 Unreport Threat 2 | . . . . . 2 . . . . . . . . Recall Investigation 1 | . 1 . . . . . . . . . . . . Zone Layout 1 | . 1 . . . . . . . . . . . . Fabricator Hacks . | . . . . . . . . . . . . . . Repair Station Hacks . | . . . . . . . . . . . . . . Recycling Unit Hacks . | . . . . . . . . . . . . . . Scanalyzer . | . . . . . . . . . . . . . . Garrison Access Hacks . | . . . . . . . . . . . . . . Unauthorized Hacks 1 | . 1 . . . . . . . . . . . . Terminals 1 | . 1 . . . . . . . . . . . . Track 1 | . 1 . . . . . . . . . . . . Fabricators . | . . . . . . . . . . . . . . Repair Stations . | . . . . . . . . . . . . . . Recycling Units . | . . . . . . . . . . . . . . Scanalyzers . | . . . . . . . . . . . . . . Garrison Access . | . . . . . . . . . . . . . . Data Cores Recovered . | . . . . . . . . . . . . . . Used . | . . . . . . . . . . . . . . Hacking Detections 3 | . 1 . . . 2 . . . . . . . . Full Trace Events . | . . . . . . . . . . . . . . Feedback Events . | . . . . . . . . . . . . . . Feedback Blocked . | . . . . . . . . . . . . . . Robot Schematics Acquired . | . . . . . . . . . . . . . . Robots Built . | . . . . . . . . . . . . . . Matter . | . . . . . . . . . . . . . . Time . | . . . . . . . . . . . . . . Total Robot Build Rating . | . . . . . . . . . . . . . . Part Schematics Acquired . | . . . . . . . . . . . . . . Parts Built . | . . . . . . . . . . . . . . Matter . | . . . . . . . . . . . . . . Time . | . . . . . . . . . . . . . . Total Part Build Rating . | . . . . . . . . . . . . . . Parts Repaired . | . . . . . . . . . . . . . . Time . | . . . . . . . . . . . . . . Parts Recycled . | . . . . . . . . . . . . . . Recycled Matter . | . . . . . . . . . . . . . . Retrieved Matter . | . . . . . . . . . . . . . . Retrieved Components . | . . . . . . . . . . . . . . Parts Scanalyzed . | . . . . . . . . . . . . . . Part Schematics Acquired . | . . . . . . . . . . . . . . Parts Damaged . | . . . . . . . . . . . . . . Bothacking | -11 -10 -10 -10 -9 -8 -7 -7 -7 -6 -5 -5 -5 -5 ------------ Run | Scr Mat Min Exi Min Mat Fac Low Low Fac Fac Upp Upp War Used RIF Installer . | . . . . . . . . . . . . . . Robots Hacked . | . . . . . . . . . . . . . . Non-combat . | . . . . . . . . . . . . . . Combat . | . . . . . . . . . . . . . . Robot Hacks Applied . | . . . . . . . . . . . . . . Relay Couplers Released . | . . . . . . . . . . . . . . Robots Rewired . | . . . . . . . . . . . . . . Allies Hacked . | . . . . . . . . . . . . . . Hacks Repelled . | . . . . . . . . . . . . . . Allies | -11 -10 -10 -10 -9 -8 -7 -7 -7 -6 -5 -5 -5 -5 -------- Run | Scr Mat Min Exi Min Mat Fac Low Low Fac Fac Upp Upp War Total Allies 4 | . . . . . . . 2 2 . . . . . Largest Group 2 | . . . . . . . 2 2 . . . . . Highest-Rated Group 62 | . . . . . . . 56 62 . . . . . Highest-Rated Ally 31 | . . . . . . . 31 31 . . . . . Total Orders . | . . . . . . . . . . . . . . Ally Attacks 10 | . . . . . . . 10 . . . . . . Total Damage 205 | . . . . . . . 205 . . . . . . Kills 1 | . . . . . . . 1 . . . . . . Allies Corrupted . | . . . . . . . . . . . . . . Allies Melted . | . . . . . . . . . . . . . . Intel | -11 -10 -10 -10 -9 -8 -7 -7 -7 -6 -5 -5 -5 -5 ------- Run | Scr Mat Min Exi Min Mat Fac Low Low Fac Fac Upp Upp War Robot Analysis Total . | . . . . . . . . . . . . . . Derelict Logs Recovered 4 | . . . . . . . 1 . . . 2 1 . Drone Launches . | . . . . . . . . . . . . . . Drone Recoveries . | . . . . . . . . . . . . . . Exploration | -11 -10 -10 -10 -9 -8 -7 -7 -7 -6 -5 -5 -5 -5 ------------- Run | Scr Mat Min Exi Min Mat Fac Low Low Fac Fac Upp Upp War Turns Passed 4204 | 66 133 85 320 97 467 57 291 64 360 52 228 248 1736 Spaces Moved 4922 | 51 102 54 303 89 507 126 569 148 703 129 530 659 952 Core 1 | 1 . . . . . . . . . . . . . Treads . | . . . . . . . . . . . . . . Legs . | . . . . . . . . . . . . . . Wheels 598 | 50 102 54 303 89 . . . . . . . . . Hover . | . . . . . . . . . . . . . . Flight 4323 | . . . . . 507 126 569 148 703 129 530 659 952 Fastest Speed 35 | 50 100 100 100 110 50 42 42 42 35 35 35 35 35 Average Speed 47 | 99 100 100 103 110 50 42 42 42 39 35 35 36 38 Slowest Speed 110 | 100 100 100 110 110 50 42 42 42 42 35 35 39 39 Overloaded Moves . | . . . . . . . . . . . . . . Propulsion Burnouts . | . . . . . . . . . . . . . . Robots Hopped 23 | . . . . . 11 . . . 4 . . . 8 Cave-ins Triggered . | . . . . . . . . . . . . . . Exploration Rate (%) 38 | 4 27 25 69 37 36 5 62 15 23 4 68 86 84 Regions Visited 13 Branch Regions 8 Pre-discovered Areas 3 | . . . . . . . 1 1 . . 1 . . Known Exits Taken . | . . . . . . . . . . . . . . Unknown Exits Taken 13 | 1 1 1 1 1 1 1 1 1 1 1 1 1 . Scrap Searched 11 | . . . . 1 . . 3 3 . . 1 3 . Spaces Dug 5 | . . . . . 1 . 1 . . . . . 3 Terrain Destroyed 26 | . . . . . 16 . 1 . 1 . 3 . 5 Melee 1 | . . . . . 1 . . . . . . . . Projectile 10 | . . . . . . . 1 . 1 . 3 . 5 AOE 15 | . . . . . 15 . . . . . . . . Terrain Rammed . | . . . . . . . . . . . . . . Walls Destroyed . | . . . . . . . . . . . . . . Machines Disabled . | . . . . . . . . . . . . . . Actions | -11 -10 -10 -10 -9 -8 -7 -7 -7 -6 -5 -5 -5 -5 --------- Run | Scr Mat Min Exi Min Mat Fac Low Low Fac Fac Upp Upp War Total 6594 | 66 130 75 312 88 617 129 606 148 773 135 547 664 2304 Wait 1452 | . 21 17 . . 4 . 17 . 36 5 . 5 1347 Move 4867 | 50 101 53 302 88 484 125 568 147 695 128 529 658 939 Hop 19 | . . . . . 11 . . . 3 . . . 5 Pick Up 44 | 10 2 . 4 . 15 2 1 . 8 1 . . 1 Fast Attach 26 | . 3 . . . 11 . 3 . 5 . . . 4 Attach 19 | 6 . . . . 7 2 1 . 1 1 . . 1 Detach 2 | . . . . . 2 . . . . . . . . Swap 16 | . . . 1 . 5 . 2 1 4 . 3 . . Drop 45 | . 2 . 5 . 16 . 4 . 13 . 1 . 4 Fire 89 | . 1 5 . . 60 . 8 . 6 . 5 1 3 Melee 13 | . . . . . 2 . 2 . . . 9 . . Ram . | . . . . . . . . . . . . . . Kick . | . . . . . . . . . . . . . . Crush . | . . . . . . . . . . . . . . Escape Stasis 2 | . . . . . . . . . 2 . . . . Rewire . | . . . . . . . . . . . . . . Trap . | . . . . . . . . . . . . . . Miscellaneous . | . . . . . . . . . . . . . . Route ------- -11/Scrapyard -10/Materials -10/Mines -10/Exiles -9/Mines -8/Materials (discovered 2 exits: [*Fac] / *Sto) -7/Factory -7/Lower Caves -7/Lower Caves -6/Factory -5/Factory -5/Upper Caves -5/Upper Caves -5/Warlord History --------- Turn | Location | Event 46 | -11/Scrapyard | Discovered new exit (range 15) 67 | -11/Scrapyard | Entered Materials 172 | -10/Materials | Met 8R-AWN 182 | -10/Materials | Discovered new exit (range 11) 200 | -10/Materials | Entered Mines 201 | -10/Mines | Followed 8R-AWN into the Mines 212 | -10/Mines | Met a Derelict bent on vengeance 281 | -10/Mines | Discovered new exit (range 5) 285 | -10/Mines | Entered Exiles 304 | -10/Exiles | Build established: Mutant 312 | -10/Exiles | Welcomed by 8R-AWN 331 | -10/Exiles | Met EX-HEX 361 | -10/Exiles | Met EX-BIN 378 | -10/Exiles | Aligned with FarCom system 379 | -10/Exiles | Given EX-Vault access code 403 | -10/Exiles | Opened EX-Vault 411 | -10/Exiles | Found Prototype Flight Unit 434 | -10/Exiles | Warned to stay clear of 0b10 Research branches 506 | -10/Exiles | Met EX-DEC 593 | -10/Exiles | Discovered new exit (range 10) 605 | -10/Exiles | Left Exiles lab with Flying Fortress v7 605 | -10/Exiles | Entered Mines 692 | -9/Mines | Discovered new exit (range 5) 702 | -9/Mines | Entered Materials 702 | -8/Materials | Evolved 4 slots: Propulsion x2, Utility x2 703 | -8/Materials | Identified Flying Fortress v7 768 | -8/Materials | Discovered new exit (range 16) 794 | -8/Materials | Identified exit to Storage 896 | -8/Materials | Lost 4 parts (3u1w) 1148 | -8/Materials | Discovered new exit (range 16) 1169 | -8/Materials | Entered Factory 1169 | -7/Factory | Evolved 2 slots: Propulsion x1, Weapon x1 1215 | -7/Factory | Discovered new exit (range 5) 1226 | -7/Factory | Entered Lower Caves 1315 | -7/Lower Caves | A Commander dispatched an escort 1322 | -7/Lower Caves | Learned location of Armory (-3) 1322 | -7/Lower Caves | Learned 8 Research zone layouts 1322 | -7/Lower Caves | Learned Extension garrison access intel 1412 | -7/Lower Caves | Learned Factory non-interactive machine intel 1458 | -7/Lower Caves | Attacked by a delusional Derelict stockpiling Unaware 1486 | -7/Lower Caves | Discovered new exit (range 3) 1517 | -7/Lower Caves | Entered another Lower Caves area 1523 | -7/Lower Caves | A Commander dispatched an escort 1525 | -7/Lower Caves | Learned Research trap positions 1525 | -7/Lower Caves | Learned Factory terminal intel 1540 | -7/Lower Caves | Discovered new exit (range 8) 1581 | -7/Lower Caves | Entered Factory 1581 | -6/Factory | Evolved 2 slots: Power x1, Propulsion x1 1582 | -6/Factory | Loaded intel: 252 non-interactive machine locations 1583 | -6/Factory | Loaded intel: 20 terminal locations 1892 | -6/Factory | Build established: Skirmisher 1902 | -6/Factory | Discovered new exit (range 14) 1941 | -6/Factory | Entered another Factory area 1941 | -5/Factory | Evolved 2 slots: Propulsion x1, Utility x1 1969 | -5/Factory | Discovered new exit (range 14) 1993 | -5/Factory | Entered Upper Caves 2035 | -5/Upper Caves | Learned Factory stockpile data 2183 | -5/Upper Caves | Attracted the attention of an 0b10 checkpoint 2217 | -5/Upper Caves | Discovered new exit (range 13) 2221 | -5/Upper Caves | Entered another Upper Caves area 2338 | -5/Upper Caves | Encountered a Warlord checkpoint 2339 | -5/Upper Caves | Learned 8 Factory zone layouts 2466 | -5/Upper Caves | Discovered new exit (range 9) 2469 | -5/Upper Caves | Entered Warlord 2491 | -5/Warlord | Build established: Gunner 2555 | -5/Warlord | Met Warlord 2580 | -5/Warlord | Warlord's base attacked by MAIN.C 2588 | -5/Warlord | Found Prototype Energy Gun 2588 | -5/Warlord | Identified Vortex Rifle 2590 | -5/Warlord | Found Vortex Rifle 2593 | -5/Warlord | Found Prototype Energy Cannon 2593 | -5/Warlord | Identified Vortex Driver 2595 | -5/Warlord | Found Vortex Driver 2930 | -5/Warlord | Warlord forces counterattacked 4177 | -5/Warlord | Spotted Striker 4184 | -5/Warlord | Spotted Striker 4187 | -5/Warlord | Spotted Striker 4187 | -5/Warlord | Spotted Striker 4197 | -5/Warlord | Spotted Striker 4199 | -5/Warlord | Core integrity fell below 50% 4203 | -5/Warlord | Core integrity fell below 20% 4205 | -5/Warlord | Destroyed by S-43 Plague with Heavy Machine Gun Last Messages --------------- 04192_ VTOL Module destroyed. 04192_ Imp. Maneuvering Thrusters destroyed. 04193_ Mic. Fission Core blown off. 04193_ Vortex Driver blown off. 04194_ Vortex Rifle destroyed. 04194_ Knocked back. 04195_ Penetrated by Slug. 04196_ Knocked back. 04197_ S-27 Virus destroyed. 04198_ E-15 Imp destroyed. 04198_ Adv. Targeting Computer destroyed. 04198_ Knocked back. 04199_ Mic. Fission Core blown off. 04199_ Cld. Cesium-ion Thruster blown off. 04199_ Cld. Cesium-ion Thruster crushed and broken. 04199_ Energy Well blown off. 04199_ Energy Well crushed and broken. 04201_ E-15 Imp destroyed. 04202_ Slug penetrates S-27 Virus. 04202_ Knocked back. Map ----- +----------------------------------------------------+ | #????????# #????????????????????????????????????? | | ###??????# #????????????????????????????????????? | | #??????# #????????????????????????????????????? | | #??????# #????????????????????????????????????? | | #??????# #????????????????????????????????????? | | #???#### #????????????????????????????????????? | | ##### ## ##???????????????????????????????????? | | #???????????????????????????????????? | | #???????????????????????????????????? | | #???????????????????????????????????? | | ##+####### #???????????????????????????????????? | | ????# #???????????????????????????????????? | | ??# #???????????????????????????????????? | | #?# #???????????????????????????????????? | | #?# #???????????????????????????????????? | | ########?# ##??????????????????????????????????? | | #??# = #??????????????????????????????????? | | // #??# =%##??????"???????????????????????????? | | / ! #??# =#?????#""#??????????????????????????? | | !! #??# #?????#""#??????????????????????????? | | #??# #?????#""#??????????????????????????? | | #### #######""#####?#########??????????##? | | # *[# %""%=[*##;;; !%; ##???????? ## | | # =%!=!=!"=%*=*%%%=% !* =%#???????? # | | ####+## =![%=%!="sss%%%!%%[ *%!=[#?####??# | | ?# =g**gg!!%ssKse@/%=%%! =%%=%## ### | | ##] = [!!%!sKKssss%%!%*=%%%h%!% % #?? | | "%=! !%] !g*=[ss!s%%%%%%%!*%%!=%!% ##?? | | ##*! ] g %%K%[%%%=*!=i %!%=%#### ##??? | | ## "%! =/*%""[!=%=%% * #??## #???? | | #[! ; ]""!%!"*/""""" ;#??# #???? | | # # "" ="########;####??# ##???? | | #### #######""#####????????#????## ^#????? | | #??#""#????????????????## #???? | | ## #??#""#????????????????# ##???? | | ?# #??#""#???????????????## ##????? | | ?#= """ """ #???""????????????????# #?????? | | ##%[ """ """ #?????????????????????# #?????? | | = """ """ #?????????????????????# ##?????? | | "?????????????????????# #??????? | | ##???????????????????## ##????## | | #???????????????????## ##??## | | #???????????????????# ##?# | | ######??????????????# ## ### | | ######## # #?????????????# #?## ## | | #??????# # #???????????? ???## ## | | #####+##??????# # #??????????? ????# ## | | ??# #??????# # #?????????# ## ????## | | ??#"X""#??????# + #?????????####?#??????### | | ??######??????# ######???????????????????????##### | +----------------------------------------------------+ Best States ------------- Heat Dissipation 51 Energy Generation 31 Energy Capacity 740 Matter Stores 300 Matter Capacity 300 Sight Range 16 Terrain Scan Range 14 Terrain Scan Density 10 Base Temperature (-) 100 Armor Coverage 150 Evasion (%) 73 Targeting Accuracy 8 Recoil Reduction 1 Item Schematics ----------------- None Robot Schematics ------------------ None Fabricated ------------ Nothing Alien Tech Used ----------------- None Achievements -------------- None Challenges ------------ None Game ------ Seed LightningLargeSegregator Manual? 0 Play Time 01:15:16 Cumulative 61.4 hours Start 2021.11.03 @ 17:41:20 End 2021.11.04 @ 09:06:39 Sessions 3 Manual Loads 0 Difficulty Rogue Special Mode None Game No. 48 Rogue 46 Adventurer 2 Explorer 0 Win Type - Total 0 Types 0/0/0/0/0/0/0/0/0 Lore% 32 Gallery% 32 Achievement% 31 Wizard Run 0 Options --------- ASCII 0 Keyboard 0 Movement Mouse Keybinds 1 Fullscreen 1 Font 18/TerminusBold Map View 76x50 Tactical HUD 1 Map Filters NONE Filters NONE Steam 1 RUN: 7757f572-cfd4-4a44-86e3-a57d55ea3a70